{"text_format":"3","workbook":"xlsx","n_sheets":7,"sheets":["Физ.разв. к 3г","Соц.ком.к 3г","Позн.разв.к 3г ч1","Позн.разв. к 3г ч2","Реч.разв. к 3г","Худ.эст. к 3г ч1","Худ.эст. к 3г ч.2"],"read":"whole","date_system":"1900"}

{"sheet":"Физ.разв. к 3г","index":0,"n_rows":43,"n_cols":26,"rows_kept":43,"merged":[[0,0,0,1],[0,4,0,8],[0,11,0,19],[1,0,1,3],[1,4,1,8],[1,11,1,19],[2,0,2,3],[3,0,3,1],[3,4,3,7],[3,11,3,13],[4,0,4,1],[4,4,4,7],[4,8,4,10],[4,11,4,13],[5,0,9,0],[5,1,9,1],[5,4,5,24],[5,25,9,25],[6,4,6,24],[7,4,7,12],[7,13,7,16],[7,17,7,20],[7,21,8,21],[7,22,8,22],[7,23,9,23],[7,24,9,24],[8,6,8,7],[8,10,8,11],[8,12,9,12],[8,13,8,14],[8,15,8,16],[40,1,40,24],[41,1,41,25],[42,1,42,25]]}
["Финальная диагностика",{"$nulls":3},"ГРУППА РАННЕГО ВОЗРАСТА (2-3 года)",{"$nulls":6},"Период проведения - окончание посещения группы раннего возраста"]
["Стартовая диагностика",{"$nulls":3},"ГРУППА МЛАДШЕГО ВОЗРАСТА (3-4 года)",{"$nulls":6},"Период проведения - начало уч. года (сентябрь) или начало посещения группы младшего возраста"]
["*- не диагностируется в данном возрасте"]
["Сформированность показателя",{"$nulls":3},"«2» показатель сформирован",{"$nulls":3},"«1» показатель в стадии формирования",null,null,"«0» показатель не сформирован"]
["Средний уровень",{"$nulls":3},"1,8 - 2,0 норма-высокий",{"$nulls":3},"1,0 - 1,7 норма - средний",null,null,"0,0 - 0,9 ниже нормы"]
["№","Ф.И. ребенка",null,null,"ОБРАЗОВАТЕЛЬНАЯ ОБЛАСТЬ «ФИЗИЧЕСКОЕ РАЗВИТИЕ»",{"$nulls":20},"СРЕДНИЙ ПОКАЗАТЕЛЬ ПО РЕБЕНКУ"]
[{"$nulls":4},"Показатели возможных достижений (возрастные характеристики) к 3 годам"]
[{"$nulls":4},"Крупная моторика. ОВД, ОРУ",{"$nulls":8},"Мелкая моторика",{"$nulls":3},"КГН",{"$nulls":3},"ЗОЖ","Подвижные игры","Спортивные игры*","Спортивные упражнения*"]
[{"$nulls":4},"Бросание, катание, ловля, метание","Ползанье, лазанье","Ходьба",null,"Бег","Прыжки","Равновесие",null,"Строевые упражнения*","Координация рук и глаз",null,"Графические навыки",null,"Навыки соблюдения чистоты тела (правила личной гигиены)","Навыки культуры еды (прием пищи) ","Навыки поддержания порядка (правила поведения в быту) ","Навыки ухода за собой (одевание, раздевание) "]
[{"$nulls":4},"Ребенок скатывает мяч по наклонной доске, прокатывает мяч стоя и сидя, передает мяч другому, бросает мяч от груди/снизу/из-за головы, перебрасывает мяч через сетку","Ребенок ползает на животе, на четвереньках, подлезает под дугу","Ребенок ходит стайкой с перешагивание линии, палки, куба, на носках, с переходом на бег, приставным шагом, с предметом в руке","Ребенок ходит врассыпную, в заданном направлении, между предметами, по кругу по одному и парами","Ребенок бегает стайкой, в заданном направлении, за катящимся мячом, с переходом на ходьбу и обратно","Ребенок прыгает на двух ногах на месте, с продвижением вперед, через 1-2 линии, в длину с места","Ребенок ходит по дорожке, по наклонной доске, по гимнастической скамейке","Ребенок удерживает равновесие с положением рук в стороны",null,"Ребенок осваивает ножницы на этапе бессмысленного разрезания бумаги","Ребенок может выложить из счетных палочек по образцу простые изображения","Ребенок может нарисовать линии, кружки, простые фигуры","Ребенок умеет крепко держать карандаш, кисть","Ребенок самостоятельно моет руки перед едой, после прогулки и посещения туалета, по мере загрязнения","Ребенок самостоятельно ест (пользуется ложкой)","Ребенок замечает нарушения правил гигиены, стремится проявлять самостоятельность в бытовом поведении","Ребенок самостоятельно надевает/снимает несложные предметы одежды","Ребенок активно участвует при проведении комплекса гимнастики и закаливания","Ребенок активно участвует, положительно реагирует"]
[1,{"$nulls":11},"*",{"$nulls":10},"*","*",{"$f":"AVERAGE(E11:Y11)","v":{"$error":"#DIV/0!"}}]
[2,{"$nulls":11},"*",{"$nulls":10},"*","*",{"$f":"AVERAGE(E12:Y12)","v":{"$error":"#DIV/0!"}}]
[3,{"$nulls":11},"*",{"$nulls":10},"*","*",{"$f":"AVERAGE(E13:Y13)","v":{"$error":"#DIV/0!"}}]
[4,{"$nulls":11},"*",{"$nulls":10},"*","*",{"$error":"#DIV/0!"}]
[5,{"$nulls":11},"*",{"$nulls":10},"*","*",{"$error":"#DIV/0!"}]
[6,{"$nulls":11},"*",{"$nulls":10},"*","*",{"$error":"#DIV/0!"}]
[7,{"$nulls":11},"*",{"$nulls":10},"*","*",{"$error":"#DIV/0!"}]
[8,{"$nulls":11},"*",{"$nulls":10},"*","*",{"$error":"#DIV/0!"}]
[9,{"$nulls":11},"*",{"$nulls":10},"*","*",{"$error":"#DIV/0!"}]
[10,{"$nulls":11},"*",{"$nulls":10},"*","*",{"$error":"#DIV/0!"}]
[11,{"$nulls":11},"*",{"$nulls":10},"*","*",{"$error":"#DIV/0!"}]
[12,{"$nulls":11},"*",{"$nulls":10},"*","*",{"$error":"#DIV/0!"}]
[13,{"$nulls":11},"*",{"$nulls":10},"*","*",{"$error":"#DIV/0!"}]
[14,{"$nulls":11},"*",{"$nulls":10},"*","*",{"$error":"#DIV/0!"}]
[15,{"$nulls":11},"*",{"$nulls":10},"*","*",{"$error":"#DIV/0!"}]
[16,{"$nulls":11},"*",{"$nulls":10},"*","*",{"$error":"#DIV/0!"}]
[17,{"$nulls":11},"*",{"$nulls":10},"*","*",{"$error":"#DIV/0!"}]
[18,{"$nulls":11},"*",{"$nulls":10},"*","*",{"$error":"#DIV/0!"}]
[19,{"$nulls":11},"*",{"$nulls":10},"*","*",{"$error":"#DIV/0!"}]
[20,{"$nulls":11},"*",{"$nulls":10},"*","*",{"$error":"#DIV/0!"}]
[21,{"$nulls":11},"*",{"$nulls":10},"*","*",{"$error":"#DIV/0!"}]
[22,{"$nulls":11},"*",{"$nulls":10},"*","*",{"$error":"#DIV/0!"}]
[23,{"$nulls":11},"*",{"$nulls":10},"*","*",{"$error":"#DIV/0!"}]
[24,{"$nulls":11},"*",{"$nulls":10},"*","*",{"$error":"#DIV/0!"}]
[25,{"$nulls":11},"*",{"$nulls":10},"*","*",{"$error":"#DIV/0!"}]
[26,{"$nulls":11},"*",{"$nulls":10},"*","*",{"$error":"#DIV/0!"}]
[27,{"$nulls":11},"*",{"$nulls":10},"*","*",{"$f":"AVERAGE(E37:Y37)","v":{"$error":"#DIV/0!"}}]
[28,{"$nulls":11},"*",{"$nulls":10},"*","*",{"$error":"#DIV/0!"}]
[29,{"$nulls":11},"*",{"$nulls":10},"*","*",{"$error":"#DIV/0!"}]
[30,{"$nulls":11},"*",{"$nulls":10},"*","*",{"$error":"#DIV/0!"}]
[null,"СРЕДНИЙ ПОКАЗАТЕЛЬ ПО ГРУППЕ",{"$nulls":23},{"$f":"AVERAGE(Z11:Z40)","v":{"$error":"#DIV/0!"}}]
[null,"Ф.И.О, должность специалиста(ов)____________________________________________________________________________________________________________________________________________________________________________________________________________________________________"]
[null,"©Автор - составитель Кулекина И.А., СПб, 2023"]

{"sheet":"Соц.ком.к 3г","index":1,"n_rows":43,"n_cols":18,"rows_kept":43,"merged":[[0,0,0,1],[0,4,0,6],[0,8,0,13],[1,0,1,3],[1,4,1,6],[1,8,1,13],[2,0,2,3],[3,0,3,1],[3,4,3,5],[3,6,3,7],[4,0,4,1],[4,4,4,5],[4,6,4,7],[5,0,9,0],[5,1,9,1],[5,4,5,16],[5,17,9,17],[6,4,6,16],[7,4,7,13],[7,14,8,14],[7,15,9,15],[7,16,9,16],[8,8,8,9],[8,11,8,13],[40,1,40,16],[41,1,41,17],[42,1,42,17]]}
["Финальная диагностика",{"$nulls":3},"ГРУППА РАННЕГО ВОЗРАСТА (2-3 года)",{"$nulls":3},"Период проведения - окончание посещения группы раннего возраста"]
["Стартовая диагностика",{"$nulls":3},"ГРУППА МЛАДШЕГО ВОЗРАСТА (3-4 года)",{"$nulls":3},"Период проведения - начало уч. года (сентябрь) или начало посещения группы младшего возраста"]
["*- не диагностируется в данном возрасте"]
["Сформированность показателя",{"$nulls":3},"«2» показатель сформирован",null,"«1» показатель в стадии формирования",null,"«0» показатель не сформирован"]
["Средний уровень",{"$nulls":3},"1,8 - 2,0 норма-высокий",null,"1,0 - 1,7 норма - средний",null,"0,0 - 0,9 ниже нормы"]
["№","Ф.И. ребенка",null,null,"ОБРАЗОВАТЕЛЬНАЯ ОБЛАСТЬ «СОЦИАЛЬНО-КОММУНИКАТИВНОЕ  РАЗВИТИЕ»",{"$nulls":12},"СРЕДНИЙ ПОКАЗАТЕЛЬ ПО РЕБЕНКУ"]
[{"$nulls":4},"Показатели возможных достижений (возрастные характеристики) к 3 годам"]
[{"$nulls":4},"Сфера социальных отношений",{"$nulls":9},"Область формирования основ гражданственности и патриотизма","Сфера трудового воспитания*","Область формирования основ безопасного поведения*"]
[{"$nulls":4},"Отношение к самому себе","Отношение к сверстникам","Отношение к взрослым","Эмоции","Поведение",null,"Семья","Игровое поведение"]
[{"$nulls":4},"Ребенок знает свои Ф.И., пол, возраст","Ребенок может самостоятельно познакомиться со сверстником (узнать имя)","Ребенок называет и различает основные действия взрослых (убирает, моет, читает, смотрит телевизор и т.д.)","Ребенок понимает, может назвать, узнает на картинках эмоциональные состояния человека","Ребенок выполняет элементарные правила поведения (можно-нельзя)","Ребенок выполняет элементарные правила общения (здоровается, прощается, говорит вежливые слова)","Ребенок знает членов своей семьи (родителей, братьев, сестёр, бабушек, дедушек)","Ребенок стремится проявлять самостоятельность при выборе игр","Ребенок играет рядом со сверстниками","Ребенок в играх отображает действия окружающих, воспроизводит не только их последовательность и взаимосвязь, но и социальные отношения, заранее определяет цель","Ребенок демонстрирует первоначальные представления о населенном пункте, в котором живет"]
[1,{"$nulls":14},"*","*",{"$f":"AVERAGE(F11:Q11)","v":{"$error":"#DIV/0!"}}]
[2,{"$nulls":14},"*","*",{"$error":"#DIV/0!"}]
[3,{"$nulls":14},"*","*",{"$error":"#DIV/0!"}]
[4,{"$nulls":14},"*","*",{"$error":"#DIV/0!"}]
[5,{"$nulls":14},"*","*",{"$error":"#DIV/0!"}]
[6,{"$nulls":14},"*","*",{"$error":"#DIV/0!"}]
[7,{"$nulls":14},"*","*",{"$error":"#DIV/0!"}]
[8,{"$nulls":14},"*","*",{"$error":"#DIV/0!"}]
[9,{"$nulls":14},"*","*",{"$error":"#DIV/0!"}]
[10,{"$nulls":14},"*","*",{"$error":"#DIV/0!"}]
[11,{"$nulls":14},"*","*",{"$error":"#DIV/0!"}]
[12,{"$nulls":14},"*","*",{"$error":"#DIV/0!"}]
[13,{"$nulls":14},"*","*",{"$error":"#DIV/0!"}]
[14,{"$nulls":14},"*","*",{"$error":"#DIV/0!"}]
[15,{"$nulls":14},"*","*",{"$error":"#DIV/0!"}]
[16,{"$nulls":14},"*","*",{"$error":"#DIV/0!"}]
[17,{"$nulls":14},"*","*",{"$error":"#DIV/0!"}]
[18,{"$nulls":14},"*","*",{"$error":"#DIV/0!"}]
[19,{"$nulls":14},"*","*",{"$error":"#DIV/0!"}]
[20,{"$nulls":14},"*","*",{"$error":"#DIV/0!"}]
[21,{"$nulls":14},"*","*",{"$error":"#DIV/0!"}]
[22,{"$nulls":14},"*","*",{"$error":"#DIV/0!"}]
[23,{"$nulls":14},"*","*",{"$error":"#DIV/0!"}]
[24,{"$nulls":14},"*","*",{"$error":"#DIV/0!"}]
[25,{"$nulls":14},"*","*",{"$error":"#DIV/0!"}]
[26,{"$nulls":14},"*","*",{"$error":"#DIV/0!"}]
[27,{"$nulls":14},"*","*",{"$error":"#DIV/0!"}]
[28,{"$nulls":14},"*","*",{"$error":"#DIV/0!"}]
[29,{"$nulls":14},"*","*",{"$error":"#DIV/0!"}]
[30,{"$nulls":14},"*","*",{"$error":"#DIV/0!"}]
[null,"СРЕДНИЙ ПОКАЗАТЕЛЬ ПО ГРУППЕ",{"$nulls":15},{"$f":"AVERAGE(R11:R40)","v":{"$error":"#DIV/0!"}}]
[null,"Ф.И.О, должность специалиста(ов)____________________________________________________________________________________________________________________________________________________________________________________________________________________________________"]
[null,"©Автор - составитель Кулекина И.А., СПб, 2023"]

{"sheet":"Позн.разв.к 3г ч1","index":2,"n_rows":44,"n_cols":16,"rows_kept":44,"merged":[[0,0,0,1],[0,4,0,6],[0,8,0,12],[1,0,1,3],[1,4,1,6],[1,8,1,12],[2,0,2,3],[3,0,3,1],[3,4,3,5],[3,6,3,8],[4,0,4,1],[4,4,4,5],[4,6,4,8],[5,0,10,0],[5,1,10,1],[5,4,5,14],[5,15,10,15],[6,4,6,14],[7,4,7,6],[7,7,8,8],[7,9,7,14],[8,13,8,14],[9,4,9,6],[9,7,10,7],[9,8,10,8],[9,9,10,9],[9,10,10,10],[9,11,10,11],[9,12,10,12],[9,13,10,13],[9,14,10,14],[41,1,41,14],[42,1,42,15],[43,1,43,15]]}
["Финальная диагностика",{"$nulls":3},"ГРУППА РАННЕГО ВОЗРАСТА (2-3 года)",{"$nulls":3},"Период проведения - окончание посещения группы раннего возраста"]
["Стартовая диагностика",{"$nulls":3},"ГРУППА МЛАДШЕГО ВОЗРАСТА (3-4 года)",{"$nulls":3},"Период проведения - начало уч. года (сентябрь) или начало посещения группы младшего возраста"]
["*- не диагностируется в данном возрасте"]
["Сформированность показателя",{"$nulls":3},"«2» показатель сформирован",null,"«1» показатель в стадии формирования",null,null,"«0» показатель не сформирован"]
["Средний уровень",{"$nulls":3},"1,8 - 2,0 норма-высокий",null,"1,0 - 1,7 норма - средний",null,null,"0,0 - 0,9 ниже нормы"]
["№","Ф.И. ребенка",null,null,"ОБРАЗОВАТЕЛЬНАЯ ОБЛАСТЬ «ПОЗНАВАТЕЛЬНОЕ  РАЗВИТИЕ»",{"$nulls":10},"СРЕДНИЙ ПОКАЗАТЕЛЬ ПО РЕБЕНКУ"]
[{"$nulls":4},"Показатели возможных достижений (возрастные характеристики) к 3 годам"]
[{"$nulls":4},"Сенсорные эталоны ",null,null,"Познавательные действия",null,"Математические представления"]
[{"$nulls":4},"Цвет, оттенки","Форма, геом. фигуры","Величина",null,null,"Количество и счет","Ориентировка во времени","Ориентировка в пространстве","Пространственно-количественные связи и отношения","Сравнение"]
[{"$nulls":4},"Ребенок различает и называет",null,null,"Ребенок осуществляет поисковые и обследовательские действия","Ребенок активно действует с окружающими его предметами, знает названия, свойства и назначение многих предметов, находящихся в его повседневном обиходе","Ребенок знает, называет, может показать на картинке цифры 1-3, может посчитать количество предметов в пределах 3","Ребенок ориентируется в основных временных представлениях (день – ночь, утро-вечер)","Ребенок ориентируется в основных пространственных направлениях (вперед-назад, вверх-вниз)","Ребенок сравнивает предметы по величине (большой – маленький, длинный – короткий, высокий – низкий)","Ребенок осуществляет группировку по заданному образцу (по цвету, форме, величине)","Ребенок определяет количественную сторону различных групп предметов (много и много, много и мало, много и один)"]
[{"$nulls":4},"основные цвета (синий, желтый, красный, зеленый)","формы предметов (круг, квадрат, треугольник, прямоугольник)"," большой – маленький, длинный – короткий, высокий – низкий"]
[1,{"$nulls":14},{"$f":"AVERAGE(E12:O12)","v":{"$error":"#DIV/0!"}}]
[2,{"$nulls":14},{"$error":"#DIV/0!"}]
[3,{"$nulls":14},{"$error":"#DIV/0!"}]
[4,{"$nulls":14},{"$error":"#DIV/0!"}]
[5,{"$nulls":14},{"$error":"#DIV/0!"}]
[6,{"$nulls":14},{"$error":"#DIV/0!"}]
[7,{"$nulls":14},{"$error":"#DIV/0!"}]
[8,{"$nulls":14},{"$error":"#DIV/0!"}]
[9,{"$nulls":14},{"$error":"#DIV/0!"}]
[10,{"$nulls":14},{"$error":"#DIV/0!"}]
[11,{"$nulls":14},{"$error":"#DIV/0!"}]
[12,{"$nulls":14},{"$error":"#DIV/0!"}]
[13,{"$nulls":14},{"$error":"#DIV/0!"}]
[14,{"$nulls":14},{"$error":"#DIV/0!"}]
[15,{"$nulls":14},{"$error":"#DIV/0!"}]
[16,{"$nulls":14},{"$error":"#DIV/0!"}]
[17,{"$nulls":14},{"$error":"#DIV/0!"}]
[18,{"$nulls":14},{"$error":"#DIV/0!"}]
[19,{"$nulls":14},{"$error":"#DIV/0!"}]
[20,{"$nulls":14},{"$error":"#DIV/0!"}]
[21,{"$nulls":14},{"$error":"#DIV/0!"}]
[22,{"$nulls":14},{"$error":"#DIV/0!"}]
[23,{"$nulls":14},{"$error":"#DIV/0!"}]
[24,{"$nulls":14},{"$error":"#DIV/0!"}]
[25,{"$nulls":14},{"$error":"#DIV/0!"}]
[26,{"$nulls":14},{"$error":"#DIV/0!"}]
[27,{"$nulls":14},{"$error":"#DIV/0!"}]
[28,{"$nulls":14},{"$error":"#DIV/0!"}]
[29,{"$nulls":14},{"$error":"#DIV/0!"}]
[30,{"$nulls":14},{"$error":"#DIV/0!"}]
[null,"СРЕДНИЙ ПОКАЗАТЕЛЬ ПО ГРУППЕ",{"$nulls":13},{"$f":"AVERAGE(P12:P41)","v":{"$error":"#DIV/0!"}}]
[null,"Ф.И.О, должность специалиста(ов)____________________________________________________________________________________________________________________________________________________________________________________________________________________________________"]
[null,"©Автор - составитель Кулекина И.А., СПб, 2023"]

{"sheet":"Позн.разв. к 3г ч2","index":3,"n_rows":44,"n_cols":21,"rows_kept":44,"merged":[[0,0,0,1],[0,4,0,6],[0,8,0,15],[1,0,1,3],[1,4,1,6],[1,8,1,15],[2,0,2,3],[3,0,3,1],[3,4,3,5],[3,6,3,8],[3,9,3,11],[4,0,4,1],[4,4,4,5],[4,6,4,8],[4,9,4,11],[5,0,10,0],[5,1,10,1],[5,4,5,19],[5,20,10,20],[6,4,6,19],[7,4,7,11],[7,12,7,19],[8,5,8,8],[8,9,8,10],[8,12,8,16],[8,17,8,19],[9,4,9,8],[9,9,9,11],[9,12,9,16],[9,17,10,17],[9,18,10,18],[9,19,10,19],[41,1,41,19],[42,1,42,20],[43,1,43,20]]}
["Финальная диагностика",{"$nulls":3},"ГРУППА РАННЕГО ВОЗРАСТА (2-3 года)",{"$nulls":3},"Период проведения - окончание посещения группы раннего возраста"]
["Стартовая диагностика",{"$nulls":3},"ГРУППА МЛАДШЕГО ВОЗРАСТА (3-4 года)",{"$nulls":3},"Период проведения - начало уч. года (сентябрь) или начало посещения группы младшего возраста"]
["*- не диагностируется в данном возрасте"]
["Сформированность показателя",{"$nulls":3},"«2» показатель сформирован",null,"«1» показатель в стадии формирования",null,null,"«0» показатель не сформирован"]
["Средний уровень",{"$nulls":3},"1,8 - 2,0 норма-высокий",null,"1,0 - 1,7 норма - средний",null,null,"0,0 - 0,9 ниже нормы"]
["№","Ф.И. ребенка",null,null,"ОБРАЗОВАТЕЛЬНАЯ ОБЛАСТЬ «ПОЗНАВАТЕЛЬНОЕ  РАЗВИТИЕ»",{"$nulls":15},"СРЕДНИЙ ПОКАЗАТЕЛЬ ПО РЕБЕНКУ"]
[{"$nulls":4},"Показатели возможных достижений (возрастные характеристики) к 3 годам"]
[{"$nulls":4},"Окружающий мир",{"$nulls":7},"Природа "]
[{"$nulls":4},"Труд взрослых, профессии","Предметный мир",{"$nulls":3},"Я- сам, человек",null,"Семья","Объекты живой природы",{"$nulls":4},"Объекты неживой природы, природные явления"]
[{"$nulls":4},"Ребенок имеет представления, может показать на картинке и в естественной среде, может назвать",{"$nulls":4},"Ребенок имеет представления",null,null,"Ребенок имеет представления, может показать на картинке и в естественной среде, может назвать",{"$nulls":4},"Ребенок наблюдает за явлениями природы","Ребенок эмоционально откликается на красоту природы, проявляет положительное отношение и интерес к взаимодействию с природой","Ребенок старается не причинять вред живым объектам"]
[{"$nulls":4}," некоторые профессияи (повар варит еду, шофер водит машину, доктор лечит)"," предметы посуды (3-4 вида)","предметы мебели (3-4 вида)","предметы одежды (3-4 вида)"," игрушки (3-4 вида)","о себе (знает свое имя, пол, возраст)","об особенностях внешнего облика человека (знает части тела)"," о деятельности близких родственников (мама готовит, папа работает, сестра учится и т.д.)","домашних животных и их детенышей (3-4 вида)","диких животных и их детенышей (3-4 вида)"," растения, деревья (3-4 вида)"," фрукты (3-4 вида)"," овощи (3-4 вида)"]
[1,{"$nulls":19},{"$f":"AVERAGE(E12:T12)","v":{"$error":"#DIV/0!"}}]
[2,{"$nulls":19},{"$error":"#DIV/0!"}]
[3,{"$nulls":19},{"$error":"#DIV/0!"}]
[4,{"$nulls":19},{"$error":"#DIV/0!"}]
[5,{"$nulls":19},{"$error":"#DIV/0!"}]
[6,{"$nulls":19},{"$error":"#DIV/0!"}]
[7,{"$nulls":19},{"$error":"#DIV/0!"}]
[8,{"$nulls":19},{"$error":"#DIV/0!"}]
[9,{"$nulls":19},{"$error":"#DIV/0!"}]
[10,{"$nulls":19},{"$error":"#DIV/0!"}]
[11,{"$nulls":19},{"$error":"#DIV/0!"}]
[12,{"$nulls":19},{"$error":"#DIV/0!"}]
[13,{"$nulls":19},{"$error":"#DIV/0!"}]
[14,{"$nulls":19},{"$error":"#DIV/0!"}]
[15,{"$nulls":19},{"$error":"#DIV/0!"}]
[16,{"$nulls":19},{"$error":"#DIV/0!"}]
[17,{"$nulls":19},{"$error":"#DIV/0!"}]
[18,{"$nulls":19},{"$error":"#DIV/0!"}]
[19,{"$nulls":19},{"$error":"#DIV/0!"}]
[20,{"$nulls":19},{"$error":"#DIV/0!"}]
[21,{"$nulls":19},{"$error":"#DIV/0!"}]
[22,{"$nulls":19},{"$error":"#DIV/0!"}]
[23,{"$nulls":19},{"$error":"#DIV/0!"}]
[24,{"$nulls":19},{"$error":"#DIV/0!"}]
[25,{"$nulls":19},{"$error":"#DIV/0!"}]
[26,{"$nulls":19},{"$error":"#DIV/0!"}]
[27,{"$nulls":19},{"$error":"#DIV/0!"}]
[28,{"$nulls":19},{"$error":"#DIV/0!"}]
[29,{"$nulls":19},{"$error":"#DIV/0!"}]
[30,{"$nulls":19},{"$error":"#DIV/0!"}]
[null,"СРЕДНИЙ ПОКАЗАТЕЛЬ ПО ГРУППЕ",{"$nulls":18},{"$f":"AVERAGE(U12:U41)","v":{"$error":"#DIV/0!"}}]
[null,"Ф.И.О, должность специалиста(ов)____________________________________________________________________________________________________________________________________________________________________________________________________________________________________"]
[null,"©Автор - составитель Кулекина И.А., СПб, 2023"]

{"sheet":"Реч.разв. к 3г","index":4,"n_rows":43,"n_cols":16,"rows_kept":43,"merged":[[0,0,0,1],[0,4,0,6],[0,8,0,15],[1,0,1,3],[1,4,1,6],[1,8,1,15],[2,0,2,3],[3,0,3,1],[3,4,3,5],[3,6,3,8],[3,9,3,11],[4,0,4,1],[4,4,4,5],[4,6,4,8],[4,9,4,11],[5,0,9,0],[5,1,9,1],[5,4,5,14],[5,15,9,15],[6,4,6,14],[7,4,7,5],[7,7,7,8],[7,9,7,10],[7,11,7,12],[7,14,9,14],[8,4,9,4],[8,5,9,5],[8,6,9,6],[8,7,9,7],[8,8,9,8],[8,9,9,9],[8,10,9,10],[8,11,9,11],[8,12,9,12],[8,13,9,13],[40,1,40,14],[41,1,41,15],[42,1,42,15]]}
["Финальная диагностика",{"$nulls":3},"ГРУППА РАННЕГО ВОЗРАСТА (2-3 года)",{"$nulls":3},"Период проведения - окончание посещения группы раннего возраста"]
["Стартовая диагностика",{"$nulls":3},"ГРУППА МЛАДШЕГО ВОЗРАСТА (3-4 года)",{"$nulls":3},"Период проведения - начало уч. года (сентябрь) или начало посещения группы младшего возраста"]
["*- не диагностируется в данном возрасте"]
["Сформированность показателя",{"$nulls":3},"«2» показатель сформирован",null,"«1» показатель в стадии формирования",null,null,"«0» показатель не сформирован"]
["Средний уровень",{"$nulls":3},"1,8 - 2,0 норма-высокий",null,"1,0 - 1,7 норма - средний",null,null,"0,0 - 0,9 ниже нормы"]
["№","Ф.И. ребенка",null,null,"ОБРАЗОВАТЕЛЬНАЯ ОБЛАСТЬ «РЕЧЕВОЕ  РАЗВИТИЕ»",{"$nulls":10},"СРЕДНИЙ ПОКАЗАТЕЛЬ ПО РЕБЕНКУ"]
[{"$nulls":4},"Показатели возможных достижений (возрастные характеристики) к 3 годам"]
[{"$nulls":4},"Общее речевое развитие",null,"Формирование словаря","Звуковая культура речи",null,"Грамматический строй",null,"Связная речь",null,"ЧХЛ","Подготовка к обучению грамоте*"]
[{"$nulls":4},"Ребенок владеет активной речью, использует в общении разные части речи, простые предложения из 4-х слов","Ребенок рассматривает картинки, показывает и называет предметы, изображенные на них","В речи присутствуют существительные, глаголы, прилагательные, наречия","Ребенок говорит внятно, не торопясь","Ребенок правильно произносит некоторые гласные и согласные звуки","Ребенок правильно использует большинство основных грамматических категорий: окончаний существительных, уменьшительно-ласкательных суффиксов","Ребенок может выражать свои мысли посредством предложений из 3-4 слов.","Ребенок может рассказать в 2-4 предложениях о нарисованном на картинке, об увиденном на прогулке","Ребенок отвечает на вопросы с использованием фразовой речи или формы простого предложения","Ребенок проявляет интерес к стихам, сказкам"]
[]
[1,{"$nulls":13},"*",{"$f":"AVERAGE(E11:O11)","v":{"$error":"#DIV/0!"}}]
[2,{"$nulls":13},"*",{"$error":"#DIV/0!"}]
[3,{"$nulls":13},"*",{"$error":"#DIV/0!"}]
[4,{"$nulls":13},"*",{"$error":"#DIV/0!"}]
[5,{"$nulls":13},"*",{"$error":"#DIV/0!"}]
[6,{"$nulls":13},"*",{"$error":"#DIV/0!"}]
[7,{"$nulls":13},"*",{"$error":"#DIV/0!"}]
[8,{"$nulls":13},"*",{"$error":"#DIV/0!"}]
[9,{"$nulls":13},"*",{"$error":"#DIV/0!"}]
[10,{"$nulls":13},"*",{"$error":"#DIV/0!"}]
[11,{"$nulls":13},"*",{"$error":"#DIV/0!"}]
[12,{"$nulls":13},"*",{"$error":"#DIV/0!"}]
[13,{"$nulls":13},"*",{"$error":"#DIV/0!"}]
[14,{"$nulls":13},"*",{"$error":"#DIV/0!"}]
[15,{"$nulls":13},"*",{"$error":"#DIV/0!"}]
[16,{"$nulls":13},"*",{"$error":"#DIV/0!"}]
[17,{"$nulls":13},"*",{"$error":"#DIV/0!"}]
[18,{"$nulls":13},"*",{"$error":"#DIV/0!"}]
[19,{"$nulls":13},"*",{"$error":"#DIV/0!"}]
[20,{"$nulls":13},"*",{"$error":"#DIV/0!"}]
[21,{"$nulls":13},"*",{"$error":"#DIV/0!"}]
[22,{"$nulls":13},"*",{"$error":"#DIV/0!"}]
[23,{"$nulls":13},"*",{"$error":"#DIV/0!"}]
[24,{"$nulls":13},"*",{"$error":"#DIV/0!"}]
[25,{"$nulls":13},"*",{"$error":"#DIV/0!"}]
[26,{"$nulls":13},"*",{"$error":"#DIV/0!"}]
[27,{"$nulls":13},"*",{"$error":"#DIV/0!"}]
[28,{"$nulls":13},"*",{"$error":"#DIV/0!"}]
[29,{"$nulls":13},"*",{"$error":"#DIV/0!"}]
[30,{"$nulls":13},"*",{"$error":"#DIV/0!"}]
[null,"СРЕДНИЙ ПОКАЗАТЕЛЬ ПО ГРУППЕ",{"$nulls":13},{"$f":"AVERAGE(P11:P40)","v":{"$error":"#DIV/0!"}}]
[null,"Ф.И.О, должность специалиста(ов)____________________________________________________________________________________________________________________________________________________________________________________________________________________________________"]
[null,"©Автор - составитель Кулекина И.А., СПб, 2023"]

{"sheet":"Худ.эст. к 3г ч1","index":5,"n_rows":44,"n_cols":17,"rows_kept":44,"merged":[[0,0,0,1],[0,4,0,6],[0,8,0,15],[1,0,1,3],[1,4,1,6],[1,8,1,15],[2,0,2,3],[3,0,3,1],[3,4,3,5],[3,6,3,8],[3,9,3,11],[4,0,4,1],[4,4,4,5],[4,6,4,8],[4,9,4,11],[5,0,10,0],[5,1,10,1],[5,4,5,15],[5,16,10,16],[6,4,6,15],[7,4,7,15],[8,4,8,5],[8,7,8,12],[8,13,10,13],[8,14,10,14],[8,15,10,15],[9,4,10,4],[9,5,10,5],[9,6,10,6],[9,7,10,7],[9,8,10,8],[9,9,10,9],[9,10,10,10],[9,11,10,11],[9,12,10,12],[41,1,41,15],[42,1,42,16],[43,1,43,16]]}
["Финальная диагностика",{"$nulls":3},"ГРУППА РАННЕГО ВОЗРАСТА (2-3 года)",{"$nulls":3},"Период проведения - окончание посещения группы раннего возраста"]
["Стартовая диагностика",{"$nulls":3},"ГРУППА МЛАДШЕГО ВОЗРАСТА (3-4 года)",{"$nulls":3},"Период проведения - начало уч. года (сентябрь) или начало посещения группы младшего возраста"]
["*- не диагностируется в данном возрасте"]
["Сформированность показателя",{"$nulls":3},"«2» показатель сформирован",null,"«1» показатель в стадии формирования",null,null,"«0» показатель не сформирован"]
["Средний уровень",{"$nulls":3},"1,8 - 2,0 норма-высокий",null,"1,0 - 1,7 норма - средний",null,null,"0,0 - 0,9 ниже нормы"]
["№","Ф.И. ребенка",null,null,"ОБРАЗОВАТЕЛЬНАЯ ОБЛАСТЬ «ХУДОЖЕСТВЕННО-ЭСТЕТИЧЕСКОЕ РАЗВИТИЕ»",{"$nulls":11},"СРЕДНИЙ ПОКАЗАТЕЛЬ ПО РЕБЕНКУ"]
[{"$nulls":4},"Показатели возможных достижений (возрастные характеристики) к 3 годам"]
[{"$nulls":4},"Музыкальная деятельность"]
[{"$nulls":4},"Слушание",null,"Пение ","Музыкально-ритмические движения",{"$nulls":5},"Песенное творчество*","Игра на детских музыкальных инструментах","Танцевально-игровое творчество*"]
[{"$nulls":4},"Ребенок с удовольствием м слушает музыку, эмоционально реагирует на содержание","Ребенок различает звуки по высоте (колокольчик. Фортепьяно, металлофон)","Ребенок активно подпевает","Ребенок выполняет хлопки в ладоши под музыку, хлопки с одновременным притопыванием","Ребенок выполняет приседание «пружинка»","Ребенок выполняет приставные шаги вперед - назад","Ребенок выполняет имитационные упражнения","Ребенок выполняет плясовые движения в кругу, врассыпную, меняет движение с изменением характера музыки","Ребенок выполняет кружение на носочках"]
[]
[1,{"$nulls":12},"*",null,"*",{"$f":"AVERAGE(F12:P12)","v":{"$error":"#DIV/0!"}}]
[2,{"$nulls":12},"*",null,"*",{"$error":"#DIV/0!"}]
[3,{"$nulls":12},"*",null,"*",{"$error":"#DIV/0!"}]
[4,{"$nulls":12},"*",null,"*",{"$error":"#DIV/0!"}]
[5,{"$nulls":12},"*",null,"*",{"$error":"#DIV/0!"}]
[6,{"$nulls":12},"*",null,"*",{"$error":"#DIV/0!"}]
[7,{"$nulls":12},"*",null,"*",{"$error":"#DIV/0!"}]
[8,{"$nulls":12},"*",null,"*",{"$error":"#DIV/0!"}]
[9,{"$nulls":12},"*",null,"*",{"$error":"#DIV/0!"}]
[10,{"$nulls":12},"*",null,"*",{"$error":"#DIV/0!"}]
[11,{"$nulls":12},"*",null,"*",{"$error":"#DIV/0!"}]
[12,{"$nulls":12},"*",null,"*",{"$error":"#DIV/0!"}]
[13,{"$nulls":12},"*",null,"*",{"$error":"#DIV/0!"}]
[14,{"$nulls":12},"*",null,"*",{"$error":"#DIV/0!"}]
[15,{"$nulls":12},"*",null,"*",{"$error":"#DIV/0!"}]
[16,{"$nulls":12},"*",null,"*",{"$error":"#DIV/0!"}]
[17,{"$nulls":12},"*",null,"*",{"$error":"#DIV/0!"}]
[18,{"$nulls":12},"*",null,"*",{"$error":"#DIV/0!"}]
[19,{"$nulls":12},"*",null,"*",{"$error":"#DIV/0!"}]
[20,{"$nulls":12},"*",null,"*",{"$error":"#DIV/0!"}]
[21,{"$nulls":12},"*",null,"*",{"$error":"#DIV/0!"}]
[22,{"$nulls":12},"*",null,"*",{"$error":"#DIV/0!"}]
[23,{"$nulls":12},"*",null,"*",{"$error":"#DIV/0!"}]
[24,{"$nulls":12},"*",null,"*",{"$error":"#DIV/0!"}]
[25,{"$nulls":12},"*",null,"*",{"$error":"#DIV/0!"}]
[26,{"$nulls":12},"*",null,"*",{"$error":"#DIV/0!"}]
[27,{"$nulls":12},"*",null,"*",{"$error":"#DIV/0!"}]
[28,{"$nulls":12},"*",null,"*",{"$error":"#DIV/0!"}]
[29,{"$nulls":12},"*",null,"*",{"$error":"#DIV/0!"}]
[30,{"$nulls":12},"*",null,"*",{"$error":"#DIV/0!"}]
[null,"СРЕДНИЙ ПОКАЗАТЕЛЬ ПО ГРУППЕ",{"$nulls":14},{"$f":"AVERAGE(Q12:Q41)","v":{"$error":"#DIV/0!"}}]
[null,"Ф.И.О, должность специалиста(ов)____________________________________________________________________________________________________________________________________________________________________________________________________________________________________"]
[null,"©Автор - составитель Кулекина И.А., СПб, 2023"]

{"sheet":"Худ.эст. к 3г ч.2","index":6,"n_rows":44,"n_cols":17,"rows_kept":44,"merged":[[0,0,0,1],[0,5,0,8],[1,0,1,3],[1,5,1,8],[1,10,1,15],[2,0,2,3],[3,0,3,1],[3,5,3,6],[3,7,3,10],[3,11,3,12],[4,0,4,1],[4,5,4,6],[4,7,4,10],[4,11,4,12],[5,0,10,0],[5,1,10,1],[5,4,5,15],[5,16,10,16],[6,4,6,15],[7,4,7,10],[7,11,8,11],[7,12,8,12],[7,13,8,15],[8,4,8,5],[8,6,8,7],[8,8,10,8],[8,9,10,9],[8,10,10,10],[9,4,10,4],[9,5,10,5],[9,6,10,6],[9,7,10,7],[9,11,10,11],[9,12,10,12],[9,13,10,13],[9,14,10,14],[9,15,10,15],[41,1,41,15],[42,1,42,16],[43,1,43,16]]}
["Финальная диагностика",{"$nulls":4},"ГРУППА РАННЕГО ВОЗРАСТА (2-3 года)",{"$nulls":4},"Период проведения - окончание посещения группы раннего возраста"]
["Стартовая диагностика",{"$nulls":4},"ГРУППА МЛАДШЕГО ВОЗРАСТА (3-4 года)",{"$nulls":4},"Период проведения - начало уч. года (сентябрь) или начало посещения группы младшего возраста"]
["*- не диагностируется в данном возрасте"]
["Сформированность показателя",{"$nulls":4},"«2» показатель сформирован",null,"«1» показатель в стадии формирования",{"$nulls":3},"«0» показатель не сформирован"]
["Средний уровень",{"$nulls":4},"1,8 - 2,0 норма-высокий",null,"1,0 - 1,7 норма - средний",{"$nulls":3},"0,0 - 0,9 ниже нормы"]
[null,"Ф.И. ребенка",null,null,"ОБРАЗОВАТЕЛЬНАЯ ОБЛАСТЬ «ХУДОЖЕСТВЕННО-ЭСТЕТИЧЕСКОЕ РАЗВИТИЕ»",{"$nulls":11},"СРЕДНИЙ ПОКАЗАТЕЛЬ ПО РЕБЕНКУ"]
[{"$nulls":4},"Показатели возможных достижений (возрастные характеристики) к 3 годам"]
[{"$nulls":4},"Изобразительная деятельность",{"$nulls":6},"Приобщение к искусству","Конструктивная деятельность","Театрализованная деятельность"]
[{"$nulls":4},"Рисование ",null,"Лепка ",null,"Аппликация* ","Народное ДПИ*","Прикладное творчество*"]
[{"$nulls":4},"Ребенок может рисовать карандашом, кистью разные линии (длинные, короткие, вертикальные, горизонтальные, наклонные)","Ребенок умеет пользоваться кистью (набирать краску, макать в воду, снимать лишнюю краску) ","Ребенок может слепить простые формы: палочки, колбаски, колечки, лепёшки, шарики","Ребенок знает основные приемы лепки: круговые движения ладоней, сплющивание, углубление, соединение",{"$nulls":3},"Ребенок знает народные игрушки: дымковскую, богородскую, матрешку, ваньку-встаньку","Ребенок может выполнять постройки по образцу (гараж, дорогу к нему, забор, башенку, домики)","Ребенок имитирует характерные действия персонажей","Ребенок следит за развитием действия в играх-драматизациях и кукольных спектаклях","Ребенок передает эмоциональное состояние человека мимикой, позой, жестом, движением"]
[]
[1,{"$nulls":7},"*","*","*",{"$nulls":5},{"$f":"AVERAGE(F12:P12)","v":{"$error":"#DIV/0!"}}]
[2,{"$nulls":7},"*","*","*",{"$nulls":5},{"$error":"#DIV/0!"}]
[3,{"$nulls":7},"*","*","*",{"$nulls":5},{"$error":"#DIV/0!"}]
[4,{"$nulls":7},"*","*","*",{"$nulls":5},{"$error":"#DIV/0!"}]
[5,{"$nulls":7},"*","*","*",{"$nulls":5},{"$error":"#DIV/0!"}]
[6,{"$nulls":7},"*","*","*",{"$nulls":5},{"$error":"#DIV/0!"}]
[7,{"$nulls":7},"*","*","*",{"$nulls":5},{"$error":"#DIV/0!"}]
[8,{"$nulls":7},"*","*","*",{"$nulls":5},{"$error":"#DIV/0!"}]
[9,{"$nulls":7},"*","*","*",{"$nulls":5},{"$error":"#DIV/0!"}]
[10,{"$nulls":7},"*","*","*",{"$nulls":5},{"$error":"#DIV/0!"}]
[11,{"$nulls":7},"*","*","*",{"$nulls":5},{"$error":"#DIV/0!"}]
[12,{"$nulls":7},"*","*","*",{"$nulls":5},{"$error":"#DIV/0!"}]
[13,{"$nulls":7},"*","*","*",{"$nulls":5},{"$error":"#DIV/0!"}]
[14,{"$nulls":7},"*","*","*",{"$nulls":5},{"$error":"#DIV/0!"}]
[15,{"$nulls":7},"*","*","*",{"$nulls":5},{"$error":"#DIV/0!"}]
[16,{"$nulls":7},"*","*","*",{"$nulls":5},{"$error":"#DIV/0!"}]
[17,{"$nulls":7},"*","*","*",{"$nulls":5},{"$error":"#DIV/0!"}]
[18,{"$nulls":7},"*","*","*",{"$nulls":5},{"$error":"#DIV/0!"}]
[19,{"$nulls":7},"*","*","*",{"$nulls":5},{"$error":"#DIV/0!"}]
[20,{"$nulls":7},"*","*","*",{"$nulls":5},{"$error":"#DIV/0!"}]
[21,{"$nulls":7},"*","*","*",{"$nulls":5},{"$error":"#DIV/0!"}]
[22,{"$nulls":7},"*","*","*",{"$nulls":5},{"$error":"#DIV/0!"}]
[23,{"$nulls":7},"*","*","*",{"$nulls":5},{"$error":"#DIV/0!"}]
[24,{"$nulls":7},"*","*","*",{"$nulls":5},{"$error":"#DIV/0!"}]
[25,{"$nulls":7},"*","*","*",{"$nulls":5},{"$error":"#DIV/0!"}]
[26,{"$nulls":7},"*","*","*",{"$nulls":5},{"$error":"#DIV/0!"}]
[27,{"$nulls":7},"*","*","*",{"$nulls":5},{"$error":"#DIV/0!"}]
[28,{"$nulls":7},"*","*","*",{"$nulls":5},{"$error":"#DIV/0!"}]
[29,{"$nulls":7},"*","*","*",{"$nulls":5},{"$error":"#DIV/0!"}]
[30,{"$nulls":7},"*","*","*",{"$nulls":5},{"$error":"#DIV/0!"}]
[null,"СРЕДНИЙ ПОКАЗАТЕЛЬ ПО ГРУППЕ",{"$nulls":14},{"$f":"AVERAGE(Q12:Q41)","v":{"$error":"#DIV/0!"}}]
[null,"Ф.И.О, должность специалиста(ов)____________________________________________________________________________________________________________________________________________________________________________________________________________________________________"]
[null,"©Автор - составитель Кулекина И.А., СПб, 2023"]